Cogmind - Beta 10.2 @@@ ROGUE MODE // 2021.05.13 @ 20:25:42 Player: theq629 Result: Self-destructed Performance ------------- Evolutions (2) 1000 Regions Visited (4) 800 Robots Destroyed (13) 65 Value Destroyed (264) 264 Prototype IDs (0) 0 Alien Tech Used (0) 0 Bonus (0) 0 TOTAL SCORE: 2129 Bonus ------- None Cogmind --------- Core Integrity 356/550 Matter 238/300 Energy 100/100 System Corruption 0% Temperature Cool (18) Movement Walking (150) Ox1 Location -8/Materials Parts ------- > --- POWER (1) -------- (None) > --- PROPULSION (3) --- Aluminum Leg > --- UTILITY (4) ------ Small Storage Unit Medium Storage Unit Improved Terrain Scanner Seismic Analyzer > --- WEAPON (3) ------- Heavy Assault Rifle > --- INVENTORY (10) --- Light Ion Engine Light Ion Engine Improved Ion Engine Advanced Signal Interpreter Medium Armor Plating Peak State ------------ > --- POWER ------------ Ion Engine > --- PROPULSION ------- Aluminum Leg Aluminum Leg > --- UTILITY ---------- Heat Sink Small Storage Unit Medium Storage Unit Improved Terrain Scanner > --- WEAPON ----------- Beam Rifle Heavy Assault Rifle Grenade Launcher > --- INVENTORY -------- Light Ion Engine Light Ion Engine Improved Ion Engine Advanced Signal Interpreter Seismic Analyzer Medium Armor Plating Light Assault Rifle [Rating: 14] Favorites ----------- Power Ion Engine Engine Ion Engine Propulsion Aluminum Leg Leg Aluminum Leg Utility Small Storage Unit Device Improved Terrain Scanner Storage Small Storage Unit Processor Seismic Analyzer Weapon EM Pulse Gun Energy Gun EM Pulse Gun Ballistic Gun Light Assault Rifle Launcher Grenade Launcher Build | -11 -10 -10 -9 -8 ------- Run | Scr Mat Min Mat Mat Slots Evolved 4 | . . . 2 2 Power . | . . . . . Propulsion 1 | . . . 1 . Utility 2 | . . . 1 1 Weapon 1 | . . . . 1 Parts Attached 23 | 7 . . 9 7 Power 2 | 1 . . 1 . Engine 2 | 1 . . 1 . Core . | . . . . . Reactor . | . . . . . Propulsion 5 | 2 . . 3 . Treads . | . . . . . Leg 5 | 2 . . 3 . Wheel . | . . . . . Hover . | . . . . . Flight . | . . . . . Utility 7 | 2 . . 3 2 Device 4 | 1 . . 2 1 Storage 2 | 1 . . 1 . Processor 1 | . . . . 1 Hackware . | . . . . . Protection . | . . . . . Artifact . | . . . . . Weapon 9 | 2 . . 2 5 Energy Gun 4 | 1 . . 2 1 Energy Cannon . | . . . . . Ballistic Gun 4 | 1 . . . 3 Ballistic Cannon . | . . . . . Launcher 1 | . . . . 1 Special Weapon . | . . . . . Impact Weapon . | . . . . . Slashing Weapon . | . . . . . Piercing Weapon . | . . . . . Special Melee Weapon . | . . . . . Unidentified Prototypes . | . . . . . Parts Lost 16 | . . . 6 10 Power 2 | . . . 1 1 Propulsion 4 | . . . 2 2 Utility 2 | . . . 1 1 Weapon 8 | . . . 2 6 Highest Loss Streak 8 | . . . 6 8 Average Slot Usage (%) 89 | . 100 100 90 83 Engine 10 | . 14 14 10 8 Leg 26 | . 28 28 29 22 Device 11 | . 14 14 9 12 Storage 18 | . 14 14 19 18 Energy Gun 13 | . 14 14 14 10 Ballistic Gun 7 | . 14 14 6 6 Launcher 1 | . . . . 4 Naked Turns . | . . . . . Heaviest Build 25 | 11 11 11 21 25 Greatest Support 33 | 20 20 20 33 30 Greatest Overweight (x) 1 | 1 . . 1 1 Average Overweight (x) . | . . . . . Largest Inventory Capacity 10 | 6 6 6 10 10 Average Capacity 8 | 5 6 6 9 10 Most Carried 9 | 4 4 5 6 9 Average Carried 4 | 1 4 4 5 6 Final Capacity 10 | 6 6 6 10 10 Final Carried 5 | 4 4 5 5 5 Class Distribution -------------------- 92% | Mutant 7% | Scavenger-Mutant Dominant Class ---------------- Mutant | -10/Materials Mutant | -10/Mines Mutant | -9/Materials Mutant | -8/Materials Resources | -11 -10 -10 -9 -8 ----------- Run | Scr Mat Min Mat Mat Matter Collected 429 | 203 . 33 102 91 Remotely . | . . . . . Salvage Created 332 | 16 . . 158 158 Parts 28 | 5 . . 10 13 Haulers Intercepted . | . . . . . Recyclers Shooed 1 | . . . . 1 Parts Field Recycled . | . . . . . Retrieved Matter . | . . . . . Parts Self-Destructed . | . . . . . Prevented . | . . . . . Kills | -11 -10 -10 -9 -8 ------- Run | Scr Mat Min Mat Mat Combat Hostiles Destroyed 10 | . . . 5 5 Guns 8 | . . . 5 3 AOE 2 | . . . . 2 Classes Destroyed 6 | 1 . . 3 2 Worker 1 | . . . . 1 Tunneler 1 | 1 . . . . Watcher 1 | . . . . 1 Swarmer 6 | . . . 3 3 Grunt 2 | . . . 1 1 Sentry 2 | . . . 1 1 Best Kill Streak 4 | 1 . . 3 4 Combat Bots Only 3 | . . . 3 3 Max Kills in Single Turn 2 | 1 . . 1 2 Gunslinging . | . . . . . Exploded 1 | . . . . 1 Melee . | . . . . . Uniques/NPCs Destroyed . | . . . . . Combat | -11 -10 -10 -9 -8 -------- Run | Scr Mat Min Mat Mat Damage Taken 1466 | 34 74 . 592 766 Core 330 | 17 . . 119 194 Absorbed by Shields . | . . . . . Core Remaining (%) 85 | 93 . 93 70 . Volleys Fired 55 | 6 . . 21 28 Largest 2 | 2 . . 2 2 Hottest 80 | 60 . . 60 80 Shots Fired 90 | 12 . . 29 49 Gun 87 | 12 . . 29 46 Cannon . | . . . . . Launcher 3 | . . . . 3 Special . | . . . . . Kinetic 53 | 6 . . 18 29 Thermal 4 | . . . . 4 Explosive 3 | . . . . 3 Electromagnetic 30 | 6 . . 11 13 Robot Hit Streak 11 | 3 . . 9 11 Robot Miss Streak 6 | 2 . . 6 3 Penetration Max . | . . . . . Secondary Targets 3 | . . . 2 1 Max Gunslinging Chain 1 | . . . 1 1 Shots Hit Robots 62 | 7 . . 20 35 Core Hits 21 | 2 . . 8 11 Critical Hits . | . . . . . Critical Kills . | . . . . . Critical Parts Destroyed . | . . . . . Melee Attacks . | . . . . . Impact . | . . . . . Slashing . | . . . . . Piercing . | . . . . . Sneak Attacks . | . . . . . Combat Hostiles . | . . . . . Follow-up Attacks . | . . . . . Damage Inflicted 989 | 134 . . 274 581 Guns 705 | 92 . . 216 397 Cannons . | . . . . . Explosions 284 | 42 . . 58 184 Melee . | . . . . . Ramming . | . . . . . Kinetic 381 | 29 . . 114 238 Thermal 154 | 42 . . 58 54 Explosive 157 | . . . . 157 Electromagnetic 297 | 63 . . 102 132 Impact . | . . . . . Slashing . | . . . . . Piercing . | . . . . . Highest Corruption . | . . . . . Average Corruption . | . . . . . Corruption Purged . | . . . . . Overload Shots . | . . . . . Overflow Damage 15 | 2 . . 13 . Projectiles . | . . . . . Explosions 15 | 2 . . 13 . Melee . | . . . . . Knockbacks . | . . . . . Impact . | . . . . . Kinetic . | . . . . . Secondary . | . . . . . Self-Inflicted Damage 66 | 35 . . 17 14 Shots 3 | 1 . . 1 1 Rammed . | . . . . . Targets Rammed . | . . . . . Kicked . | . . . . . Crushed . | . . . . . Highest Temperature 52 | 52 . . 18 8 Average Temperature 13 | 26 . . 10 4 Received Heat Transfer 567 | . . . 216 351 Siege Activations . | . . . . . Robots Corrupted . | . . . . . Combat Hostiles . | . . . . . Parts Fried . | . . . . . Impact Corruptions . | . . . . . Robots Melted . | . . . . . Combat Hostiles . | . . . . . Parts Melted . | . . . . . Heat Transferred 212 | 50 . . 50 112 Parts Sabotaged . | . . . . . Parts Stolen . | . . . . . Parts Stripped . | . . . . . Power Chain Reactions 3 | 1 . . 1 1 Missiles Intercepted . | . . . . . Alert | -11 -10 -10 -9 -8 ------- Run | Scr Mat Min Mat Mat Peak Influence 179 | 5 3 . 135 179 Initial 56 | . 3 . . 56 Average 71 | 1 3 . 77 123 Maximum Alert Level . | . . . . . Low Security (%) 100 | 100 100 100 100 100 Level 1 . | . . . . . Level 2 . | . . . . . Level 3 . | . . . . . Level 4 . | . . . . . Level 5 . | . . . . . High Security . | . . . . . Max Security . | . . . . . Squads Dispatched 2 | . 1 . . 1 Investigation . | . . . . . Extermination . | . . . . . Reinforcement 2 | . 1 . . 1 Assault . | . . . . . Garrison . | . . . . . Intercept . | . . . . . Construction Impeded 1 | . . . . 1 Haulers Reinforced . | . . . . . Stealth | -11 -10 -10 -9 -8 --------- Run | Scr Mat Min Mat Mat Distress Signals 3 | . 1 . 1 1 Communications Jammed . | . . . . . Distress Signals . | . . . . . Times Spotted 27 | . 4 . 11 12 Peak Tracking Total 5 | . 5 . 5 5 Tactical Retreats 5 | . . . 3 2 Traps | -11 -10 -10 -9 -8 ------- Run | Scr Mat Min Mat Mat Traps Triggered . | . . . . . Indirectly . | . . . . . Trap Hack Attempts . | . . . . . Triggered . | . . . . . Disarmed . | . . . . . Reprogrammed . | . . . . . Reused . | . . . . . Traps Extracted . | . . . . . Installed . | . . . . . Triggered . | . . . . . Machines | -11 -10 -10 -9 -8 ---------- Run | Scr Mat Min Mat Mat Machines Disabled . | . . . . . Max in Single Turn . | . . . . . Machines Sabotaged . | . . . . . Garrisons Compromised . | . . . . . Overloaded Fab Kills . | . . . . . Fab Network Shutdowns . | . . . . . Hacking | -11 -10 -10 -9 -8 --------- Run | Scr Mat Min Mat Mat Machines Accessed . | . . . . . Terminals . | . . . . . Fabricators . | . . . . . Repair Stations . | . . . . . Recycling Units . | . . . . . Scanalyzers . | . . . . . Garrison Access . | . . . . . Total Hacks . | . . . . . Successful . | . . . . . Failed . | . . . . . Catastrophic . | . . . . . Database Lockouts . | . . . . . Manual . | . . . . . Terminals . | . . . . . Fabricators . | . . . . . Repair Stations . | . . . . . Recycling Units . | . . . . . Scanalyzers . | . . . . . Garrison Access . | . . . . . Terminal Hacks . | . . . . . Fabricator Hacks . | . . . . . Repair Station Hacks . | . . . . . Recycling Unit Hacks . | . . . . . Scanalyzer . | . . . . . Garrison Access Hacks . | . . . . . Unauthorized Hacks . | . . . . . Terminals . | . . . . . Fabricators . | . . . . . Repair Stations . | . . . . . Recycling Units . | . . . . . Scanalyzers . | . . . . . Garrison Access . | . . . . . Data Cores Recovered . | . . . . . Used . | . . . . . Hacking Detections . | . . . . . Full Trace Events . | . . . . . Feedback Events . | . . . . . Feedback Blocked . | . . . . . Robot Schematics Acquired . | . . . . . Robots Built . | . . . . . Matter . | . . . . . Time . | . . . . . Total Robot Build Rating . | . . . . . Part Schematics Acquired . | . . . . . Parts Built . | . . . . . Matter . | . . . . . Time . | . . . . . Total Part Build Rating . | . . . . . Parts Repaired . | . . . . . Time . | . . . . . Parts Recycled . | . . . . . Recycled Matter . | . . . . . Retrieved Matter . | . . . . . Retrieved Components . | . . . . . Parts Scanalyzed . | . . . . . Part Schematics Acquired . | . . . . . Parts Damaged . | . . . . . Bothacking | -11 -10 -10 -9 -8 ------------ Run | Scr Mat Min Mat Mat Used RIF Installer . | . . . . . Robots Hacked . | . . . . . Non-combat . | . . . . . Combat . | . . . . . Robot Hacks Applied . | . . . . . Relay Couplers Released . | . . . . . Robots Rewired . | . . . . . Allies Hacked . | . . . . . Hacks Repelled . | . . . . . Allies | -11 -10 -10 -9 -8 -------- Run | Scr Mat Min Mat Mat Total Allies . | . . . . . Largest Group . | . . . . . Highest-Rated Group . | . . . . . Highest-Rated Ally . | . . . . . Total Orders . | . . . . . Ally Attacks . | . . . . . Total Damage . | . . . . . Kills . | . . . . . Allies Corrupted . | . . . . . Allies Melted . | . . . . . Intel | -11 -10 -10 -9 -8 ------- Run | Scr Mat Min Mat Mat Robot Analysis Total . | . . . . . Derelict Logs Recovered . | . . . . . Drone Launches . | . . . . . Drone Recoveries . | . . . . . Exploration | -11 -10 -10 -9 -8 ------------- Run | Scr Mat Min Mat Mat Turns Passed 717 | 88 50 53 311 215 Spaces Moved 426 | 52 41 40 198 95 Core 10 | 10 . . . . Treads . | . . . . . Legs 416 | 42 41 40 198 95 Wheels . | . . . . . Hover . | . . . . . Flight . | . . . . . Fastest Speed 50 | 50 120 120 120 120 Average Speed 120 | 111 120 120 120 127 Slowest Speed 150 | 120 120 120 150 150 Overloaded Moves . | . . . . . Propulsion Burnouts . | . . . . . Robots Hopped . | . . . . . Cave-ins Triggered . | . . . . . Exploration Rate (%) 13 | 4 12 24 19 8 Regions Visited 4 Branch Regions 1 Pre-discovered Areas . | . . . . . Known Exits Taken . | . . . . . Unknown Exits Taken 4 | 1 1 1 1 . Scrap Searched 1 | . . 1 . . Spaces Dug . | . . . . . Terrain Destroyed 27 | 2 . . 7 18 Melee . | . . . . . Projectile . | . . . . . AOE 27 | 2 . . 7 18 Terrain Rammed . | . . . . . Walls Destroyed . | . . . . . Machines Disabled . | . . . . . Actions | -11 -10 -10 -9 -8 --------- Run | Scr Mat Min Mat Mat Total 539 | 68 42 45 242 142 Wait 26 | . 2 5 13 6 Move 422 | 51 40 39 197 95 Hop . | . . . . . Pick Up 13 | 4 . 1 2 6 Fast Attach 14 | 7 . . 6 1 Attach 8 | . . . 2 6 Detach . | . . . . . Swap 1 | . . . 1 . Drop . | . . . . . Fire 55 | 6 . . 21 28 Melee . | . . . . . Ram . | . . . . . Kick . | . . . . . Crush . | . . . . . Escape Stasis . | . . . . . Rewire . | . . . . . Trap . | . . . . . Miscellaneous . | . . . . . Route ------- -11/Scrapyard -10/Materials -10/Mines -9/Materials -8/Materials History --------- Turn | Location | Event 15 | -11/Scrapyard | Discovered new exit (range 15) 89 | -11/Scrapyard | Entered Materials 89 | -10/Materials | Discovered new exit (range 7) 139 | -10/Materials | Entered Mines 165 | -10/Mines | Met a Derelict bent on vengeance 172 | -10/Mines | Discovered new exit (range 8) 192 | -10/Mines | Entered Materials 192 | -9/Materials | Evolved 2 slots: Propulsion x1, Utility x1 303 | -9/Materials | Build established: Mutant 407 | -9/Materials | Lost 6 parts (1p2n1u2w) 495 | -9/Materials | Discovered new exit (range 8) 503 | -9/Materials | Entered another Materials area 503 | -8/Materials | Evolved 2 slots: Utility x1, Weapon x1 718 | -8/Materials | Self-destructed Last Messages --------------- 00649_ U-05 Engineer lays Concrete. 00651_ U-05 Engineer builds a Wall. 00651_ U-05 Engineer lays Concrete. 00653_ U-05 Engineer builds a Wall. 00657_ Acquired Adv. Signal Interpreter. 00672_ Lgt. Assault Rifle destroyed. 00676_ EM Pulse Gun destroyed. 00679_ Destroyed Particle Gun. 00683_ Beam Rifle destroyed. 00686_ Processing Tank disabled. 00687_ Grenade Launcher destroyed. 00699_ Aluminum Leg destroyed. 00699_ U-05 Engineer lays Concrete. 00699_ G-47 Trooper destroyed. 00699_ Switching to secondary target: G-47 Trooper. 00702_ Heat Sink destroyed. 00707_ Ion Engine destroyed. 00708_ U-05 Engineer lays Concrete. 00713_ Lgt. Assault Rifle destroyed. 00717_ U-05 Engineer lays Concrete. Map ----- +----------------------------------------------------+ | ?????????????????????????????????????????????????? | | ?????????????????????????????????????????????????? | | ?????????????????????????????????????????????????? | | ?????????????????????????????????????????????????? | | ?????#???????????????????????????????????????????? | | ?????????????????????????????????????????????????? | | ?????????????????????????????????????????????????? | | ????????????#????#???????????????????????????????? | | ?#??????########??#??????????????????????????????? | | ???????#?# ##?#??????????????????????????????? | | ????????## #????? ?? ????????????????????????? | | ????#?#?## #??#??????????????????????????????? | | ???#?????# #?#???? ?????? ? ?????????????????? | | ?????????# ##???? ??"???????#????????????????? | | ???#?????## ##?##????"???????????#?????????????? | | ??????????# #?#??? ? "????? ??#????????????????? | | ????#?????# #??????????? ? ?? #????????????????? | | #???????#?# #???#?????? ??? #????????????????? | | ??????????# #?########?#??# #?????? ?????????? | | ??????#?### #???## # #?#### #????????????????? | | ########### ##### ## # #????#? ?????????? | | % #???#????????????? | | %u #????????????????? | | = a #?#????#?????????? | | ########## #############g## #????????????????? | | #??????? #?#?# a @# ?????????????? | | #??????# ### g/ %g! ????????????? | | #??#???### #### " =### ?????????????? | | #??#?#??#? #????# """ #???######?????????????? | | #???????##???#?## " " """ #????#??????#??????????? | | #???#??##???????# "R" """ #??????#???????????????? | | #?????????????#?# """ #?????#????????????????? | | ???????????#??# = # ??? ?????????????????? | | ???? ???#??????############??????#???????????????? | | ???? ??????#???????#???##??????? #???????????????? | | ???????????????????????????????? ????????????????? | | ?????????#????##??##???#??????? ?????????????????? | | ?????????#????????#??#???????????????????????????? | | ???????????????????#?????????????????????????????? | | ????????????????????????????? ???????????????????? | | ?????????????????????????????????????????????????? | | ?????????????????????????????????????????????????? | | ?????????????????????????????????????????????????? | | ?????????????????????????????????????????????????? | | ?????????????????????????????????????????????????? | | ?????????????????????????????????????????????????? | | ?????????????????????????????????????????????????? | | ?????????????????????????????????????????????????? | | ?????????????????????????????????????????????????? | | ?????????????????????????????????????????????????? | +----------------------------------------------------+ Best States ------------- Heat Dissipation 41 Energy Generation 10 Energy Capacity 250 Matter Stores 300 Matter Capacity 300 Sight Range 16 Terrain Scan Range 16 Terrain Scan Density 60 Evasion (%) 40 Item Schematics ----------------- None Robot Schematics ------------------ None Fabricated ------------ Nothing Alien Tech Used ----------------- None Achievements -------------- None Challenges ------------ None Game ------ Seed GammaCoolantShockpuncher Manual? 0 Play Time 00:10:15 Cumulative 24.9 hours Start 2021.05.13 @ 20:17:25 End 2021.05.13 @ 20:25:42 Sessions 1 Manual Loads 0 Difficulty Rogue Special Mode None Game No. 31 Rogue 16 Adventurer 0 Explorer 15 Win Type - Total 0 Types 0/0/0/0/0/0/0/0/0 Lore% 20 Gallery% 28 Achievement% 19 Wizard Run 0 Options --------- ASCII 0 Keyboard 0 Movement Vi Keybinds 0 Fullscreen 2 Font 24/Terminus Map View 76x50 Tactical HUD 1 Map Filters NONE Filters NONE Steam 1 RUN: 69cd28b5-529d-45c5-aa86-c7ad04f5a5e3